Cogmind - Beta 15 @@@ ROGUE MODE // 2025.06.24 @ 21:10:32 Player: Minty Result: Destroyed by H-81 Overseer with Heavy Linear Accelerator Performance ------------- Evolutions (9) 4500 Regions Visited (22) 4400 Robots Destroyed (191) 955 Value Destroyed (13045) 13045 Prototype IDs (60) 1200 Alien Tech Used (0) 0 Bonus (12107) 12107 TOTAL SCORE: 36207 Bonus ------- Triggered High Security 500 High Alert Combat Kills 4787 Follower Combat Kills 1830 Entered Garrisons 1000 Used RIF Installer 2500 Entered DSFs 1000 Hacked Protovariant 500 Friendly Fire -10 Cogmind --------- Core Integrity 0/1600 Matter 80/300 Energy 75/100 System Corruption 48% Temperature Cool (0) Movement Core (50) Location -1/Access Parts ------- > --- POWER (2) -------- (None) > --- PROPULSION (6) --- Heavy Shield Leg > --- UTILITY (12) ----- Relay Coupler [Grunt] (31) Relay Coupler [Grunt] (33) Relay Coupler [Brawler] (22) Relay Coupler [Duelist] (26) > --- WEAPON (5) ------- (None) > --- INVENTORY (5) ---- High-density Centrium Leg Enhanced Gamma Bomb Array Enhanced Gamma Bomb Array Ragnarok Missile Launcher Advanced Remote Datajack Peak State ------------ > --- POWER ------------ Quantum Reactor Light Quantum Reactor > --- PROPULSION ------- Biometal Heavy Treads Biometal Heavy Treads Advanced Heavy Siege Treads > --- UTILITY ---------- Advanced Power Amplifier Advanced Heat Sink Advanced Cooling System Advanced Coolant Injector Large Storage Unit Advanced Phase Shifter Hardened Heavy Armor Plating Layered Heavy Armor Plating Improved Remote Shield Relay Coupler [Grunt] > --- WEAPON ----------- Enhanced Nova Cannon Enhanced Nova Cannon Enhanced Nova Cannon Enhanced Nova Cannon Enhanced Nova Cannon > --- INVENTORY -------- Micro Antimatter Reactor Light Quantum Reactor Light Quantum Reactor Advanced Target Analyzer Medium Reflective Plating Stealth Drone Bay Enhanced Nova Cannon Heavy Linear Accelerator Enhanced Gamma Bomb Array Enhanced Gamma Bomb Array Enhanced Gamma Bomb Array Advanced Remote Datajack Advanced Remote Datajack [Rating: 194] Favorites ----------- Power Micro Antimatter Reactor Engine Ion Engine Power Core Reinforced Fission Core Reactor Micro Antimatter Reactor Propulsion Biometal Heavy Treads Treads Biometal Heavy Treads Leg Flexi-carbon Leg Wheel Wheel Hover Unit Gravmag System Flight Unit VTOL Module Utility Advanced Heat Sink Device Advanced Heat Sink Storage Large Storage Unit Processor Visual Processing Unit Hackware Relay Coupler [Grunt] Protection Hardened Heavy Armor Plating Weapon Enhanced Nova Cannon Energy Gun Medium Laser Energy Cannon Enhanced Nova Cannon Ballistic Gun Assault Rifle Ballistic Cannon Enhanced Hardcell Cannon Launcher Enhanced Gamma Bomb Array Special Weapon Advanced Remote Datajack Slashing Weapon Ripper Piercing Weapon Makeshift Spear Build | -11 -10 -10 -10 -9 -8 -7 -7 -7 -6 -6 -5 -5 -4 -4 -3 -3 -3 -2 -2 -1 -1 -1 ------- Run | Yrd Mat Min Exi Min Mat Fac Gar Fac Fac DSF Fac Gar Fac Gar Res Tes Gar Res DSF Acc Gar Acc Slots Evolved 18 | . . . . . 4 2 . . 2 . 2 . 2 . 2 . . 2 . 2 . . Power 1 | . . . . . . . . . . . . . . . 1 . . . . . . . Propulsion 4 | . . . . . 2 . . . 1 . 1 . . . . . . . . . . . Utility 10 | . . . . . 2 2 . . 1 . 1 . 2 . 1 . . . . 1 . . Weapon 3 | . . . . . . . . . . . . . . . . . . 2 . 1 . . Parts Attached 295 | . 6 3 2 4 8 12 25 6 1 10 1 1 6 40 18 9 57 2 7 12 45 20 Power 32 | . . 2 1 . 2 2 3 1 . . . . . 4 3 1 8 . . 1 4 . Engine 9 | . . 2 1 . 1 . 3 1 . . . . . . 1 . . . . . . . Core 6 | . . . . . 1 2 . . . . . . . 2 . . 1 . . . . . Reactor 17 | . . . . . . . . . . . . . . 2 2 1 7 . . 1 4 . Propulsion 77 | . 3 . . 2 2 3 11 4 . 5 1 . . 15 2 1 17 . . . 2 9 Treads 17 | . . . . . 1 . 2 . . . . . . 6 . . 5 . . . 2 1 Leg 16 | . 1 . . . . . 8 . . . . . . . . . 5 . . . . 2 Wheel 9 | . 2 . . 2 1 1 . . . . . . . . . . . . . . . 3 Hover 7 | . . . . . . 2 . 4 . . . . . . . . 1 . . . . . Flight 28 | . . . . . . . 1 . . 5 1 . . 9 2 1 6 . . . . 3 Utility 126 | . 2 1 . . 4 6 8 . 1 5 . 1 5 14 8 4 20 . 2 6 29 10 Device 48 | . . . . . 1 2 5 . . 3 . . 2 5 2 3 10 . . 4 10 1 Storage 7 | . 1 . . . . 1 . . . . . . . . . 1 1 . 1 . 1 1 Processor 13 | . . 1 . . 2 2 1 . 1 2 . 1 1 1 . . . . . . . 1 Hackware 45 | . . . . . 1 1 . . . . . . 2 3 6 . 6 . 1 . 18 7 Protection 13 | . 1 . . . . . 2 . . . . . . 5 . . 3 . . 2 . . Artifact . | . . . . . . . . . . . . . . . . . . . . . . . Weapon 60 | . 1 . 1 2 . 1 3 1 . . . . 1 7 5 3 12 2 5 5 10 1 Energy Gun 11 | . . . . . . . 1 . . . . . . 4 3 . 2 . . 1 . . Energy Cannon 13 | . . . . 1 . . . . . . . . 1 . . . 4 . 3 4 . . Ballistic Gun 12 | . 1 . . . . . 2 . . . . . . 3 1 1 4 . . . . . Ballistic Cannon 11 | . . . . . . . . 1 . . . . . . . . . 2 . . 8 . Launcher 6 | . . . . . . 1 . . . . . . . . . 1 1 . 2 . 1 . Special Weapon 4 | . . . . . . . . . . . . . . . . 1 1 . . . 1 1 Impact Weapon . | . . . . . . . . . . . . . . . . . . . . . . . Slashing Weapon 2 | . . . . 1 . . . . . . . . . . 1 . . . . . . . Piercing Weapon 1 | . . . 1 . . . . . . . . . . . . . . . . . . . Special Melee Weapon . | . . . . . . . . . . . . . . . . . . . . . . . Unidentified Prototypes 23 | . . . . . . 1 . 2 . . . . . . 4 8 1 . 1 1 1 4 Corrupted Parts 4 | . . . . . . . . . . . . . . . . . . . . 1 1 2 System Corruption 25 | . . . . . . . . . . . . . . . . . . . . 2 3 20 Parts Lost 112 | . . . . . 1 5 14 . . . . 2 1 14 1 2 29 . . 1 15 27 Power 12 | . . . . . . . 2 . . . . . . 1 . . 4 . . . 4 1 Propulsion 46 | . . . . . 1 4 5 . . . . 2 1 7 . 1 15 . . . 1 9 Utility 38 | . . . . . . 1 4 . . . . . . 5 . 1 7 . . 1 9 10 Weapon 16 | . . . . . . . 3 . . . . . . 1 1 . 3 . . . 1 7 Highest Loss Streak 12 | . . . . . 1 2 8 . . . . 1 1 5 1 1 5 . . 1 5 12 To Critical Strikes 2 | . . . . . . . . . . . . . . . . . 1 . . . . 1 Average Backups 7 | . 8 9 5 6 3 7 8 8 4 5 4 4 3 3 4 5 4 5 8 13 13 13 Power . | . 1 2 1 2 1 3 2 1 1 1 . . . . . . . . . 1 . . Propulsion . | . 2 2 . . . . . . . . . . . . . . . . . . . . Utility 3 | . 1 3 2 3 1 1 5 6 3 3 4 4 2 2 1 . 1 3 4 5 4 7 Weapon 2 | . 1 1 . 1 1 1 1 . . . . . 1 1 2 4 2 1 3 5 5 3 Tool/Special . | . . . . . . . . . . . . . . . . . . . . . . . Unused Backups 34 | . 5 3 3 . . 3 . 3 . . . . . 1 1 2 1 . 4 1 4 3 Power 2 | . 1 . . . . . . . . . . . . . . . . . . . 1 . Propulsion 7 | . 2 . 2 . . 3 . . . . . . . . . . . . . . . . Utility 15 | . 1 1 1 . . . . 3 . . . . . 1 1 . . . 2 1 2 2 Weapon 9 | . 1 2 . . . . . . . . . . . . . 2 1 . 1 . 1 1 Tool/Special 1 | . . . . . . . . . . . . . . . . . . . 1 . . . Average Slot Usage (%) 83 | . 93 100 100 100 91 93 84 97 65 76 85 80 75 85 89 87 75 78 82 81 82 80 Engine 2 | . 14 14 14 14 7 . 4 7 6 6 5 5 5 . 1 . . . . . . . Reactor 4 | . . . . . . . . . . . . . . 1 4 9 8 8 8 8 7 6 Treads 6 | . . . . . 6 6 3 . . . . . . 13 . . 4 13 13 12 12 6 Leg 2 | . 12 . . . . . 14 11 . . . . . . . . 2 . . . . 2 Wheel 4 | . 14 28 28 28 22 13 . . . . . . . . . . . . . . . 6 Flight 3 | . . . . . . . 1 . . 19 35 29 20 9 28 27 1 . . . . . Device 12 | . . . . . 7 10 11 14 6 14 20 16 21 17 9 9 13 13 9 16 19 7 Storage 4 | . 14 14 14 14 3 7 7 6 . . . . . . . . 1 . 2 4 4 5 Processor 3 | . . 8 14 14 15 15 11 . 5 9 11 16 12 3 3 . . . . . . . Hackware 18 | . . . . . 9 10 7 7 6 6 5 5 12 21 26 36 29 26 26 13 17 28 Protection 3 | . 10 5 . . . . 4 14 6 3 . . . 7 8 4 3 4 4 7 1 . Energy Gun 2 | . 14 14 14 3 . . 3 6 . . . . . 4 1 . . . . . . . Energy Cannon 3 | . . . . . . . . . 6 6 5 4 3 . . . 4 8 9 18 6 . Ballistic Gun 2 | . 13 14 10 . . . 2 1 . . . . . 2 . . 2 . . . . . Ballistic Cannon 3 | . . . . . . . . 5 . . . . . . . . . 4 2 . 10 14 Piercing Weapon 1 | . . . 3 14 9 7 3 . . . . . . . . . . . . . . . Peak Build Rating 194 | . 8 9 14 27 34 43 53 59 55 83 88 85 77 94 91 96 149 159 167 193 194 156 Average Rating 93 | . 6 8 10 16 30 38 35 47 54 67 85 76 69 72 72 86 97 155 162 188 165 111 On Entrance 70 | 6 6 8 9 14 17 33 37 41 51 55 82 85 61 73 56 91 83 143 159 167 193 156 Naked Turns . | . . . . . . . . . . . . . . . . . . . . . . . Heaviest Build 185 | 13 20 20 19 20 21 25 42 36 36 36 36 36 29 59 32 28 88 111 132 174 185 118 Greatest Support 230 | 20 20 20 20 20 32 32 55 50 36 44 42 42 30 162 31 31 230 230 230 230 230 206 Greatest Overweight (x) 24 | . 1 . . . 1 1 5 3 . 5 . 1 . 7 1 . 24 . . 1 . 7 Average Overweight (x) . | . . . . . . . . . . . . . . . . . . . . . . 1 Largest Inventory Capacity 15 | . 10 10 10 10 10 10 10 10 5 5 5 5 5 5 5 5 5 5 15 15 15 15 Average Capacity 9 | . 8 10 10 10 6 10 10 9 5 5 5 5 5 5 5 5 5 5 10 15 15 13 Most Carried 15 | . 10 10 10 10 9 10 10 10 5 5 5 5 5 5 5 5 5 5 15 15 15 15 Average Carried 8 | . 8 9 9 9 5 8 9 9 4 4 4 4 4 4 4 4 4 5 8 14 13 13 Final Capacity 15 | 8 10 10 10 10 5 10 10 5 5 5 5 5 5 5 5 5 5 5 15 15 15 5 Final Carried 15 | 6 10 10 10 10 5 10 10 5 5 4 5 5 5 5 5 5 5 5 15 15 15 5 Class Distribution -------------------- 26% | Scavenger-Mutant 14% | Mutant 8% | Bothacker-Tank 8% | Botlord-Tank 8% | Scavenger-Tank 8% | Bothacker-Mutant 4% | Scavenger-Sprinter 3% | Botlord-Gunner 3% | Wizard-Mutant Dominant Class ---------------- Mutant | -10/Materials Mutant | -10/Mines Mutant | -10/Exiles Mutant | -9/Mines Derelict-Gladiator | -8/Materials Hacker-Gladiator | -7/Factory Scavenger-Mutant | -7/Garrison Scavenger-Mutant | -7/Factory Mutant | -6/Factory Mutant | -6/DSF Mutant | -5/Factory Scavenger-Sprinter | -5/Garrison Mutant | -4/Factory Scavenger-Mutant | -4/Garrison Scavenger-Sprinter | -3/Research Wizard-Sprinter | -3/Testing Scavenger-Mutant | -3/Garrison Bothacker-Tank | -2/Research Bothacker-Tank | -2/DSF Scavenger-Tank | -1/Access Botlord-Tank | -1/Garrison Botlord-Gunner | -1/Access Resources | -11 -10 -10 -10 -9 -8 -7 -7 -7 -6 -6 -5 -5 -4 -4 -3 -3 -3 -2 -2 -1 -1 -1 ----------- Run | Yrd Mat Min Exi Min Mat Fac Gar Fac Fac DSF Fac Gar Fac Gar Res Tes Gar Res DSF Acc Gar Acc Matter Collected 7939 | 200 132 3 107 60 100 153 466 55 . 187 . 25 60 840 165 . 1580 . 223 287 2164 1132 Remotely . | . . . . . . . . . . . . . . . . . . . . . . . Salvage Created 11679 | . 172 12 259 110 332 696 636 111 . 292 . 263 114 1787 360 . 1463 . 563 999 2640 870 Parts 425 | . 13 2 12 9 21 43 29 1 . 10 . 5 3 54 10 . 54 . 21 33 81 24 Haulers Intercepted 9 | . 1 . . . 1 2 . . . . . . . . 1 . . . . 2 . 2 Recyclers Shooed 3 | . 1 . . . . . . . . . . . . . . . . . . 1 . 1 Parts Field Recycled . | . . . . . . . . . . . . . . . . . . . . . . . Retrieved Matter . | . . . . . . . . . . . . . . . . . . . . . . . Parts Self-Destructed . | . . . . . . . . . . . . . . . . . . . . . . . Prevented . | . . . . . . . . . . . . . . . . . . . . . . . Kills | -11 -10 -10 -10 -9 -8 -7 -7 -7 -6 -6 -5 -5 -4 -4 -3 -3 -3 -2 -2 -1 -1 -1 ------- Run | Yrd Mat Min Exi Min Mat Fac Gar Fac Fac DSF Fac Gar Fac Gar Res Tes Gar Res DSF Acc Gar Acc Combat Hostiles Destroyed 158 | . 1 . . 3 5 9 17 2 . 3 . 5 . 27 3 . 25 . 4 9 37 8 Melee 22 | . . . . 3 5 7 5 . . . . . . 1 . . . . . . 1 . Guns 20 | . 1 . . . . . 5 . . . . . . 9 . . 5 . . . . . Cannons 40 | . . . . . . . . . . . . 1 . 1 . . 5 . 1 4 24 4 AOE 40 | . . . . . . 2 7 2 . 1 . 1 . 5 . . 13 . 3 1 4 1 Classes Destroyed 18 | . 5 1 . 1 1 4 1 . . 1 . . . 4 . . . . . . . . Worker 4 | . 1 . . . 1 . . . . . . . . . . . . . . 1 . 1 Builder 5 | . 1 . . . . . . . . . . . . . 1 . . . . . . 3 Tunneler 4 | . . 1 . 2 . 1 . . . . . . . . . . . . . . . . Hauler 9 | . 1 . . . 1 2 . . . . . . . . 1 . . . . 2 . 2 Recycler 5 | . . . . . . 2 . . . . . . 1 . . . . . . . . 2 Operator 1 | . . . . . . 1 . . . . . . . . . . . . . . . . Watcher 3 | . 2 . . . . 1 . . . . . . . . . . . . . . . . Swarmer 28 | . . . . 2 . . 4 . . . . . . 5 . . 6 . 3 1 6 1 Saboteur 1 | . . . . . . . . . . . . . . 1 . . . . . . . . Grunt 72 | . 1 . 1 1 4 6 6 2 . . . 1 . 13 3 . 14 . . 6 14 . Duelist 3 | . . . . . . . 2 . . . . . . . . . . . . . . 1 Sentry 17 | . . . . . 1 . 4 . . . . . . 3 . . 2 . . . 6 1 Specialist 1 | . . . . . . . . . . . . . . 1 . . . . . . . . Hunter 14 | . . . . . . 1 1 . . 2 . 2 . 1 . . . . . 2 2 3 Programmer 16 | . . . . . . 2 . . . . . 2 . 1 . . . . 1 . 8 2 Heavy 1 | . . . . . . . . . . 1 . . . . . . . . . . . . Behemoth 4 | . . . . . . . . . . . . . . 1 . . 2 . . . 1 . Savage 1 | . . . . . . . . . . . . . . 1 . . . . . . . . Guerrilla 1 | . . . . . . . . . . . . . . 1 . . . . . . . . Infiltrator 1 | . . . . . . . . . . . . . . . . . 1 . . . . . Best Kill Streak 9 | . 3 1 . 2 3 5 7 2 . 2 . 3 1 7 3 . 9 . 3 4 7 5 Combat Bots Only 9 | . 1 . . 1 3 3 7 2 . 2 . 3 . 7 2 . 9 . 3 3 7 4 Max Kills in Single Turn 5 | . 1 1 1 1 1 2 3 2 . 1 . 1 1 5 2 . 3 . 3 2 2 2 Gunslinging . | . . . . . . . . . . . . . . . . . . . . . . . Exploded 3 | . . . . . . 2 3 2 . 1 . 1 . 2 . . 3 . 3 1 1 1 Melee 1 | . . . . 1 1 1 1 . . . . . . 1 . . . . . . 1 . Uniques/NPCs Destroyed . | . . . . . . . . . . . . . . . . . . . . . . . Combat | -11 -10 -10 -10 -9 -8 -7 -7 -7 -6 -6 -5 -5 -4 -4 -3 -3 -3 -2 -2 -1 -1 -1 -------- Run | Yrd Mat Min Exi Min Mat Fac Gar Fac Fac DSF Fac Gar Fac Gar Res Tes Gar Res DSF Acc Gar Acc Hostile Shots Fired 1437 | . 4 . . 20 13 49 186 27 . 16 3 20 28 203 28 29 159 . 27 54 271 300 Missed 545 | . 1 . . 5 6 10 67 18 . 4 2 8 18 66 16 17 46 . 17 29 93 122 Hits 892 | . 3 . . 15 7 39 119 9 . 12 1 12 10 137 12 12 113 . 10 25 178 178 Melee 19 | . . . . . . . 15 . . . . . . 3 . . . . . . . 1 Projectile 873 | . 3 . . 15 7 39 104 9 . 12 1 12 10 134 12 12 113 . 10 25 178 177 AOE 1 | . . . . . . . . . . . . . . 1 . . . . . . . . Critical Strikes 39 | . . . . . . 4 3 . . . . . . 3 1 1 10 . . . 4 13 Part Disruptions 3 | . . . . . . . . . . . . . . . . . . . 2 . . 1 Damage Taken 19706 | . 32 . . 112 110 632 1698 112 . 217 14 237 190 2668 269 240 3085 . 282 526 4640 4642 Core 3282 | . . . . 30 13 121 567 6 . 63 . 76 41 203 14 20 439 . . 46 347 1296 Absorbed by Shields 266 | . . . . . . . . . . . . . . . . . 48 . . 32 186 . Redirected to Shielding 108 | . 3 . . . . . . . . . . . . 7 17 34 47 . . . . . Ignored by Resistances 56 | . . . . . . . . . . . . . . . . . . . . 32 24 . Regen/Repaired (Parts) 139 | . . . . . . 83 . . . . . . . . 56 . . . . . . . Core Remaining (%) 78 | 100 . . . 88 97 . . . . 92 . 92 . 78 . . 63 . 100 . . . Volleys Fired 457 | . 16 1 19 . . 5 26 3 . 5 . 4 4 66 7 2 102 . 8 19 112 58 Largest 5 | . 2 2 2 . . 1 2 2 . 1 . 1 1 2 1 1 2 . 3 5 5 5 Hottest 600 | . 70 70 70 . . 36 250 250 . 250 . 250 88 250 250 10 240 . 360 600 600 292 Shots Fired 947 | . 30 2 38 . . 5 42 4 . 5 . 4 4 110 7 2 184 . 16 55 299 140 Gun 268 | . 30 2 38 . . . 35 1 . . . . . 100 4 . 58 . . . . . Cannon 556 | . . . . . . . 1 3 . 5 . 4 4 10 3 . 101 . 12 45 262 106 Launcher 45 | . . . . . . 5 6 . . . . . . . . . 11 . 2 5 9 7 Special 78 | . . . . . . . . . . . . . . . . 2 14 . 2 5 28 27 Kinetic 367 | . 14 1 19 . . . 16 2 . . . . . 48 . . 52 . 1 . 108 106 Thermal 453 | . 16 1 19 . . . 20 2 . 5 . 4 . 62 7 . 107 . 11 45 154 . Explosive 22 | . . . . . . 5 6 . . . . . . . . . 11 . . . . . Electromagnetic 27 | . . . . . . . . . . . . . 4 . . . . . 2 5 9 7 Robot Hit Streak 17 | . 5 3 12 . . 4 15 2 . 11 . 6 3 10 3 4 12 . 4 7 17 16 Robot Miss Streak 7 | . 4 . 2 . . 1 4 1 . 1 . 2 2 5 2 . 2 . 7 3 7 3 Penetration Max . | . . . . . . . . . . . . . . . . . . . . . . . Secondary Targets . | . . . . . . . . . . . . . . . . . . . . . . . Shots Hit Robots 601 | . 16 2 37 7 8 30 51 1 . 5 . 4 2 61 6 2 106 . 9 25 148 81 Core Hits 383 | . 9 1 13 5 6 18 46 4 . 12 . 9 1 52 10 . 54 . 14 22 69 38 Critical Kills 9 | . . 1 . . . . . . . . . . . . . . 2 . . 1 5 . Critical Parts Destroyed 1 | . . . . . . . . . . . . . . 1 . . . . . . . . Critical Strikes 34 | . 1 1 2 . . 2 3 . . . . . . 4 . . 3 . . 1 10 7 Burn 5 | . 1 . 1 . . . . . . . . . . 3 . . . . . . . . Meltdown 8 | . . . . . . . . . . . . . . . . . 2 . . 1 5 . Destroy 3 | . . 1 . . . . . . . . . . . 1 . . 1 . . . . . Blast 12 | . . . . . . . . . . . . . . . . . . . . . 5 7 Sever 2 | . . . . . . 2 . . . . . . . . . . . . . . . . Impale 4 | . . . 1 . . . 3 . . . . . . . . . . . . . . . Melee Attacks 100 | . . . 9 16 9 34 32 . . . . . . . . . . . . . . . Impact . | . . . . . . . . . . . . . . . . . . . . . . . Slashing 54 | . . . . 10 8 30 6 . . . . . . . . . . . . . . . Piercing 46 | . . . 9 6 1 4 26 . . . . . . . . . . . . . . . Sneak Attacks 10 | . . . . 2 2 6 . . . . . . . . . . . . . . . . Combat Hostiles . | . . . . . . . . . . . . . . . . . . . . . . . Follow-up Attacks 6 | . . . . 2 1 2 1 . . . . . . . . . . . . . . . Damage Inflicted 27873 | . 204 22 796 293 370 1597 1902 179 . 409 . 474 94 2749 463 . 6110 . 561 1621 6513 3516 Guns 3860 | . 204 22 382 . . . 552 . . . . . . 1650 84 . 966 . . . . . Cannons 12027 | . . . . . . . . 61 . 50 . 116 94 252 85 . 2437 . 280 898 5221 2533 Explosions 9016 | . . . . . . 374 805 118 . 359 . 358 . 847 294 . 2707 . 281 655 1242 976 Melee 2845 | . . . 414 293 370 1223 545 . . . . . . . . . . . . . . . Ramming 125 | . . . . . . . . . . . . . . . . . . . . 68 50 7 Kinetic 6437 | . 78 10 188 . . . 193 . . . . . . 857 . . 789 . 48 . 1741 2533 Thermal 12047 | . 126 12 194 . . . 391 179 . 409 . 474 . 1892 463 . 3084 . 232 898 3608 85 Explosive 3384 | . . . . . . 374 773 . . . . . . . . . 2237 . . . . . Electromagnetic 3035 | . . . . . . . . . . . . . 94 . . . . . 281 655 1114 891 Impact . | . . . . . . . . . . . . . . . . . . . . . . . Slashing 1807 | . . . . 155 339 1170 143 . . . . . . . . . . . . . . . Piercing 1038 | . . . 414 138 31 53 402 . . . . . . . . . . . . . . . Highest Corruption 48 | . . . . . . 1 1 1 . . . 1 . 5 . . . . 5 2 13 48 Average Corruption 6 | . . . . . . 1 1 1 . . . 1 . 5 . . . . 3 2 8 16 Corruption Purged . | . . . . . . . . . . . . . . . . . . . . . . . Corruption Blocked . | . . . . . . . . . . . . . . . . . . . . . . . Effects 167 | . . . . . . 1 3 3 . . . . . 32 . . . . 9 . 86 33 Message Errors 33 | . . . . . . 1 . . . . . . . 8 . . . . 2 . 15 7 Matter Fused 32 | . . . . . . . 1 . . . . . . 3 . . . . . . 21 7 Heat Flow Errors 20 | . . . . . . . . 2 . . . . . 4 . . . . 3 . 10 1 Energy Discharges 23 | . . . . . . . . . . . . . . 5 . . . . . . 14 4 Parts Rejected 6 | . . . . . . . . . . . . . . 1 . . . . . . 3 2 Parts Fused 2 | . . . . . . . . . . . . . . . . . . . . . 1 1 Data Loss (minor) 11 | . . . . . . . . 1 . . . . . 3 . . . . 1 . 5 1 Data Loss (major) 13 | . . . . . . . 1 . . . . . . 4 . . . . . . 6 2 Misfires 10 | . . . . . . . . . . . . . . 1 . . . . 1 . 7 1 Alerts 6 | . . . . . . . 1 . . . . . . 2 . . . . . . 2 1 Misdirections 1 | . . . . . . . . . . . . . . . . . . . . . . 1 Weapon Failures 10 | . . . . . . . . . . . . . . 1 . . . . 2 . 2 5 Overload Shots . | . . . . . . . . . . . . . . . . . . . . . . . Overflow Damage 807 | . . . 21 8 49 194 28 . . . . . 17 . . . 168 . . 15 220 87 Projectiles 369 | . . . . . . . . . . . . . 17 . . . 111 . . 12 152 77 Explosions 170 | . . . . . . 4 28 . . . . . . . . . 57 . . 3 68 10 Melee 268 | . . . 21 8 49 190 . . . . . . . . . . . . . . . . Knockbacks 20 | . . . . . . . . . . . . . . . . . . . . . 5 15 Impact . | . . . . . . . . . . . . . . . . . . . . . . . Kinetic 18 | . . . . . . . . . . . . . . . . . . . . . 5 13 Secondary 2 | . . . . . . . . . . . . . . . . . . . . . . 2 Self-Inflicted Damage 517 | . . . . . . . 44 . . . . 2 . 111 23 . . . 13 . 309 15 Shots 41 | . . . . . . . 2 . . . . 1 . 16 2 . . . 1 . 18 1 Rammed 5 | . . . . . . . . . . . . . . . . . . . . 2 2 1 Targets Rammed 6 | . . . . . . . . . . . . . . . . . . . . 2 3 1 Kicked . | . . . . . . . . . . . . . . . . . . . . . . . Crushed 1 | . . . . . . . . . . . . . . . . . . . . . 1 . Highest Temperature 679 | . 59 9 108 . . 2 198 193 . 377 . 375 32 206 80 . 473 . 215 289 679 376 Average Temperature 94 | . 17 6 44 . . 2 61 89 . 176 . 145 18 84 41 . 63 . 94 149 153 50 Received Heat Transfer 3169 | . 18 . . . 54 279 276 51 . . . 36 30 442 54 12 1267 . . 45 362 243 Effects 10 | . . . . . . . . . . 2 . 1 . . . . 2 . . . 5 . Shutdowns 4 | . . . . . . . . . . . . . . . . . 2 . . . 2 . Interference 5 | . . . . . . . . . . 2 . 1 . . . . . . . . 2 . Matter Decay 1 | . . . . . . . . . . . . . . . . . . . . . 1 . Siege Activations . | . . . . . . . . . . . . . . . . . . . . . . . Martial Activations . | . . . . . . . . . . . . . . . . . . . . . . . Shielding Activations . | . . . . . . . . . . . . . . . . . . . . . . . Robots Disrupted . | . . . . . . . . . . . . . . . . . . . . . . . Combat Hostiles . | . . . . . . . . . . . . . . . . . . . . . . . Robots Corrupted 9 | . . . . . . . . . . . . . . . . . . . . 3 3 3 Combat Hostiles 9 | . . . . . . . . . . . . . . . . . . . . 3 3 3 Parts Fried 22 | . . . . . . . . . . . . . 2 . . . . . . 10 8 2 Impact Corruptions . | . . . . . . . . . . . . . . . . . . . . . . . Robots Melted 27 | . . . . . . . . . . 2 . 3 . 11 3 . 2 . . 1 5 . Combat Hostiles 27 | . . . . . . . . . . 2 . 3 . 11 3 . 2 . . 1 5 . Parts Melted 101 | . . . . . . . 1 3 . 12 . 16 . 36 9 . 6 . . 3 15 . Heat Transferred 22986 | . 444 37 592 . . . 1065 720 . 2320 . 2240 . 6975 2271 . 2487 . 185 768 2832 50 Parts Sabotaged 6 | . . . . . . . . . . . . . . 6 . . . . . . . . Parts Stolen . | . . . . . . . . . . . . . . . . . . . . . . . Parts Stripped . | . . . . . . . . . . . . . . . . . . . . . . . Power Chain Reactions 5 | . . . . . . . . . . . . . . . . . 2 . . . 2 1 Alert | -11 -10 -10 -10 -9 -8 -7 -7 -7 -6 -6 -5 -5 -4 -4 -3 -3 -3 -2 -2 -1 -1 -1 ------- Run | Yrd Mat Min Exi Min Mat Fac Gar Fac Fac DSF Fac Gar Fac Gar Res Tes Gar Res DSF Acc Gar Acc Maximum Alert Level 5 | . . . . . . 1 2 1 . . . . . 4 3 2 5 4 4 4 5 5 Low Security (%) 19 | . 100 100 . 100 100 96 35 . 100 100 100 100 100 8 . . . . . . . . Level 1 6 | . . . . . . 3 29 100 . . . . . 4 . 40 5 . . . . . Level 2 18 | . . . . . . . 35 . . . . . . 45 10 59 38 . . . . . Level 3 11 | . . . . . . . . . . . . . . 36 89 . 10 . 54 53 . . Level 4 15 | . . . . . . . . . . . . . . 5 . . 23 100 45 46 26 . Level 5 24 | . . . . . . . . . . . . . . . . . 21 . . . 73 60 High Security 2 | . . . . . . . . . . . . . . . . . . . . . . 39 Max Security . | . . . . . . . . . . . . . . . . . . . . . . . Sterilizations 1 | . . . . . . . . . . . . . . . . . . . 1 . . . Peak Influence 2840 | . 27 5 . 96 105 204 561 294 139 147 77 193 114 1199 819 444 2234 1256 1320 1429 2840 1945 Initial 1704 | . . . . . 35 42 140 294 123 72 77 63 100 69 674 438 265 1256 928 792 1118 1704 Average 1002 | . 4 . . 25 54 98 346 251 119 110 77 141 101 685 738 409 1026 1250 1106 1066 1996 1794 Influence Increases 9856 | . 75 5 10 165 200 498 601 58 21 75 14 150 49 1310 225 16 2299 2 392 836 2102 753 Destroy 0b10 Robot/C 4060 | . 20 . . 100 100 260 440 40 . 60 . 100 . 560 60 . 700 . 160 440 760 260 Destroy 0b10 Robot/NC 230 | . 25 5 10 10 10 35 . . . 5 . . 5 . 10 . 20 . 5 30 5 55 Destroy Leader 508 | . 6 . . 30 32 76 20 . . 10 . 20 . 20 12 . 60 . 30 66 60 66 Allied During Kill 434 | . . . . 8 5 4 21 . . . . . . 7 . . 77 . 89 162 40 21 Trap Triggered on 0b10 10 | . . . . . 10 . . . . . . . . . . . . . . . . . Successful Hack 307 | . 24 . . . 28 57 . . 21 . 14 . 14 23 68 16 22 2 . 18 . . Disable Machine 195 | . . . . 15 15 15 15 15 . . . . 15 . . . 15 . 15 15 45 15 Anti-Garrison Action 2300 | . . . . . . . 50 . . . . . . 600 . . 900 . . . 750 . Destroy Structure 1227 | . . . . 2 . 21 10 3 . . . 15 . 40 . . 490 . 78 105 307 156 Partial Spotted 45 | . . . . . . . . . . . . 15 . . 30 . . . . . . . Lose Combat Pursuer 540 | . . . . . . 30 45 . . . . . 15 60 45 . 15 . 15 . 135 180 Influence Decreases 7955 | . 75 5 10 72 198 393 240 367 169 32 70 48 143 210 645 441 419 998 310 758 660 1692 Entered New Map 5007 | . . . . . 58 53 60 267 129 32 70 28 93 30 525 341 89 978 310 528 280 1136 Time Decay 1208 | . 75 5 10 72 110 230 . 100 40 . . . 40 . 100 60 . 20 . 140 . 206 Lost Part 1120 | . . . . . 10 50 140 . . . . 20 10 140 10 20 290 . . 10 150 270 Lost Ally 620 | . . . . . 20 60 40 . . . . . . 40 10 20 40 . . 80 230 80 Squads Dispatched 42 | . 1 . . 1 2 5 . . . 1 1 . 2 . 7 3 . . 1 4 . 14 Investigation 17 | . . . . 1 2 4 . . . . 1 . 1 . 5 1 . . . 2 . . Extermination 3 | . . . . . . 1 . . . . . . . . 1 . . . . . . 1 Reinforcement 9 | . 1 . . . . . . . . 1 . . . . 1 1 . . 1 2 . 2 Assault 9 | . . . . . . . . . . . . . . . . 1 . . . . . 8 Garrison 4 | . . . . . . . . . . . . . 1 . . . . . . . . 3 Intercept . | . . . . . . . . . . . . . . . . . . . . . . . Searches Triggered . | . . . . . . . . . . . . . . . . . . . . . . . Construction Impeded 2 | . . . . . . . . . . . . . . . 1 . . . . 1 . . Haulers Reinforced 3 | . . . . . . . . . . . . . . . . . . . . 1 . 2 Active Scanning Responses . | . . . . . . . . . . . . . . . . . . . . . . . Cargo Convoy Interrupts . | . . . . . . . . . . . . . . . . . . . . . . . Stealth | -11 -10 -10 -10 -9 -8 -7 -7 -7 -6 -6 -5 -5 -4 -4 -3 -3 -3 -2 -2 -1 -1 -1 --------- Run | Yrd Mat Min Exi Min Mat Fac Gar Fac Fac DSF Fac Gar Fac Gar Res Tes Gar Res DSF Acc Gar Acc Distress Signals 9 | . 1 . . . . 1 . 1 . . . . . . 2 . 2 . . 1 . 1 Communications Jammed . | . . . . . . . . . . . . . . . . . . . . . . . Distress Signals . | . . . . . . . . . . . . . . . . . . . . . . . Times Spotted 361 | . 7 . . 7 10 14 24 9 . 3 1 7 12 37 16 11 53 . 10 21 68 51 Peak Tracking Total 19 | . 3 . . 3 6 4 6 7 . 2 1 6 11 11 12 6 10 . 5 4 16 19 Tactical Retreats 29 | . . . . . . 2 2 . . . . . 1 3 2 2 4 . 1 . 7 5 Traps | -11 -10 -10 -10 -9 -8 -7 -7 -7 -6 -6 -5 -5 -4 -4 -3 -3 -3 -2 -2 -1 -1 -1 ------- Run | Yrd Mat Min Exi Min Mat Fac Gar Fac Fac DSF Fac Gar Fac Gar Res Tes Gar Res DSF Acc Gar Acc Traps Triggered 25 | . 3 . . . . . 2 . . . . 1 . 5 . . 3 . . 6 4 1 Indirectly 6 | . . . . . . . . . . . . . . . . . . . . 6 . . Trap Hack Attempts . | . . . . . . . . . . . . . . . . . . . . . . . Triggered . | . . . . . . . . . . . . . . . . . . . . . . . Disarmed . | . . . . . . . . . . . . . . . . . . . . . . . Reprogrammed . | . . . . . . . . . . . . . . . . . . . . . . . Reused 1 | . . . . . 1 . . . . . . . . . . . . . . . . . Traps Extracted . | . . . . . . . . . . . . . . . . . . . . . . . Installed 2 | . . . 1 . 1 . . . . . . . . . . . . . . . . . Triggered 1 | . . . . . 1 . . . . . . . . . . . . . . . . . Most Traps Carried 4 | . . 4 4 3 3 . . . . . . . . . . . . . . . . . Machines | -11 -10 -10 -10 -9 -8 -7 -7 -7 -6 -6 -5 -5 -4 -4 -3 -3 -3 -2 -2 -1 -1 -1 ---------- Run | Yrd Mat Min Exi Min Mat Fac Gar Fac Fac DSF Fac Gar Fac Gar Res Tes Gar Res DSF Acc Gar Acc Machines Disabled 30 | . . . . 1 1 1 2 1 . . . . 1 3 . . 6 . 1 1 11 1 Max in Single Turn 2 | . . . . 1 . 1 1 1 . . . . 1 1 . . 1 . 1 . 2 1 Garrison Relay 17 | . . . . . . . 1 . . . . . . 3 . . 5 . . . 8 . Energy Cycler 1 | . . . . . . . . . . . . . . . . . . . . . . 1 Machines Repaired . | . . . . . . . . . . . . . . . . . . . . . . . Machines Dismantled . | . . . . . . . . . . . . . . . . . . . . . . . Machines Sabotaged . | . . . . . . . . . . . . . . . . . . . . . . . Overloaded Fab Kills . | . . . . . . . . . . . . . . . . . . . . . . . Hacking | -11 -10 -10 -10 -9 -8 -7 -7 -7 -6 -6 -5 -5 -4 -4 -3 -3 -3 -2 -2 -1 -1 -1 --------- Run | Yrd Mat Min Exi Min Mat Fac Gar Fac Fac DSF Fac Gar Fac Gar Res Tes Gar Res DSF Acc Gar Acc Machines Accessed 53 | . 4 . 2 1 5 8 . 1 3 . 2 . 3 3 6 7 3 1 . 2 2 . Terminals 39 | . 4 . . 1 5 4 . 1 2 . . . 2 3 5 5 3 1 . 1 2 . Fabricators 2 | . . . . . . 1 . . . . . . . . . 1 . . . . . . Repair Stations 3 | . . . . . . 2 . . . . . . . . 1 . . . . . . . Recycling Units 1 | . . . . . . . . . . . 1 . . . . . . . . . . . Scanalyzers 1 | . . . . . . . . . 1 . . . . . . . . . . . . . Garrison Access 5 | . . . . . . 1 . . . . 1 . 1 . . 1 . . . 1 . . Total Hacks 180 | . 11 . 2 3 37 34 . 2 8 . 7 . 6 9 24 17 9 1 . 6 4 . Successful 81 | . 5 . 2 1 15 15 . . 2 . 2 . 3 5 12 12 4 1 . 2 . . Failed 98 | . 6 . . 2 21 19 . 2 6 . 5 . 3 4 12 5 5 . . 4 4 . Catastrophic 18 | . . . . 1 2 3 . 1 1 . 1 . 1 . 4 . 1 . . 1 2 . Database Lockouts 1 | . . . . . 1 . . . . . . . . . . . . . . . . . Manual 89 | . . . 1 2 31 17 . 2 2 . . . . 3 13 11 4 . . 2 1 . Terminals 142 | . 11 . . 3 37 21 . 2 5 . . . 5 9 19 13 9 1 . 3 4 . Fabricators 10 | . . . . . . 7 . . . . . . . . . 3 . . . . . . Repair Stations 10 | . . . . . . 5 . . . . . . . . 5 . . . . . . . Recycling Units 6 | . . . . . . . . . . . 6 . . . . . . . . . . . Scanalyzers 3 | . . . . . . . . . 3 . . . . . . . . . . . . . Garrison Access 7 | . . . . . . 1 . . . . 1 . 1 . . 1 . . . 3 . . Terminal Hacks 50 | . 5 . 2 1 8 6 . . 2 . . . 2 5 7 6 4 1 . 1 . . Record 1 | . . . 1 . . . . . . . . . . . . . . . . . . . Part Schematic 1 | . . . . . . . . . . . . . . . 1 . . . . . . . Robot Schematic 1 | . . . . . . 1 . . . . . . . . . . . . . . . . Robot Analysis 7 | . 1 . . . 2 1 . . 1 . . . . . 2 . . . . . . . Prototype ID Bank 5 | . 2 . . . 1 1 . . . . . . . . . . . . . 1 . . Open Door 1 | . . . . . . . . . . . . . . 1 . . . . . . . . Open DSF 3 | . . . . . . . . . 1 . . . 1 . . . . 1 . . . . Level Access Points 1 | . . . . . . . . . . . . . . . 1 . . . . . . . Branch Access Points 1 | . . . . . . . . . . . . . . . 1 . . . . . . . Emergency Access Points 3 | . . . . . 1 . . . . . . . . 1 . . 1 . . . . . Terminal Index 4 | . . . . . 2 1 . . . . . . . . . 1 . . . . . . Garrison Index 1 | . . . . . . . . . . . . . . . 1 . . . . . . . Alert Level 4 | . 1 . . 1 1 1 . . . . . . . . . . . . . . . . Locate Traps 6 | . 1 . . . 1 1 . . . . . . 1 . 1 1 . . . . . . Recall Investigation 1 | . . . . . . . . . . . . . . . . 1 . . . . . . Recall Reinforcements 1 | . . . . . . . . . . . . . . . . 1 . . . . . . Garrison Registry 2 | . . . . . . . . . . . . . . 1 . . 1 . . . . . Patrol Navigation 2 | . . . . . . . . . . . . . . 1 . . 1 . . . . . Security Stations 2 | . . . . . . . . . . . . . . 1 . . 1 . . . . . Proto ID Catalog 1 | . . . 1 . . . . . . . . . . . . . . . . . . . Protovariant Controls 2 | . . . . . . . . . . . . . . . . 2 . . . . . . Fabricator Hacks 4 | . . . . . . 2 . . . . . . . . . 2 . . . . . . Network Status 1 | . . . . . . 1 . . . . . . . . . . . . . . . . Load Schematic 1 | . . . . . . . . . . . . . . . . 1 . . . . . . Build 2 | . . . . . . 1 . . . . . . . . . 1 . . . . . . Repair Station Hacks 2 | . . . . . . . . . . . . . . . 2 . . . . . . . Scan Component 1 | . . . . . . . . . . . . . . . 1 . . . . . . . Repair 1 | . . . . . . . . . . . . . . . 1 . . . . . . . Recycling Unit Hacks 1 | . . . . . . . . . . . 1 . . . . . . . . . . . Report Inventory 1 | . . . . . . . . . . . 1 . . . . . . . . . . . Scanalyzer . | . . . . . . . . . . . . . . . . . . . . . . . Garrison Access Hacks 5 | . . . . . . 1 . . . . 1 . 1 . . 1 . . . 1 . . Unlock Access 5 | . . . . . . 1 . . . . 1 . 1 . . 1 . . . 1 . . Unauthorized Hacks 19 | . . . . . 7 6 . . . . . . . . 3 3 . . . . . . Terminals 14 | . . . . . 7 3 . . . . . . . . 2 2 . . . . . . Track 1 | . . . . . . 1 . . . . . . . . . . . . . . . . Assimilate 3 | . . . . . . . . . . . . . . . 1 2 . . . . . . Botnet 4 | . . . . . 2 1 . . . . . . . . 1 . . . . . . . Disrupt 1 | . . . . . 1 . . . . . . . . . . . . . . . . . Skim 5 | . . . . . 4 1 . . . . . . . . . . . . . . . . Fabricators 2 | . . . . . . 1 . . . . . . . . . 1 . . . . . . Prioritize 2 | . . . . . . 1 . . . . . . . . . 1 . . . . . . Repair Stations 3 | . . . . . . 2 . . . . . . . . 1 . . . . . . . Patch 3 | . . . . . . 2 . . . . . . . . 1 . . . . . . . Recycling Units . | . . . . . . . . . . . . . . . . . . . . . . . Scanalyzers . | . . . . . . . . . . . . . . . . . . . . . . . Garrison Access . | . . . . . . . . . . . . . . . . . . . . . . . Data Cores Recovered 1 | . . . . . . 1 . . . . . . . . . . . . . . . . Used . | . . . . . . . . . . . . . . . . . . . . . . . Hacking Detections 44 | . 4 . . 1 5 6 . 1 2 . 1 . 1 3 6 7 3 . . 2 2 . Full Trace Events 17 | . . . . 1 2 2 . . . . 1 . 1 1 4 1 . . . 2 2 . Feedback Events 2 | . . . . . . . . . . . . . . . . . . . . 1 1 . Corruption 1 | . . . . . . . . . . . . . . . . . . . . . 1 . Hackware Fried 1 | . . . . . . . . . . . . . . . . . . . . 1 . . Feedback Blocked . | . . . . . . . . . . . . . . . . . . . . . . . Robot Schematics Acquired 1 | . . . . . . 1 . . . . . . . . . . . . . . . . Robots Built 3 | . . . . . . 3 . . . . . . . . . . . . . . . . Authchips . | . . . . . . . . . . . . . . . . . . . . . . . Time 134 | . . . . . . 134 . . . . . . . . . . . . . . . . Total Robot Build Rating 12 | . . . . . . 12 . . . . . . . . . . . . . . . . Part Schematics Acquired 1 | . . . . . . . . . . . . . . . 1 . . . . . . . Parts Built 2 | . . . . . . . . . . . . . . . . 2 . . . . . . Authchips . | . . . . . . . . . . . . . . . . . . . . . . . Time 64 | . . . . . . . . . . . . . . . . 64 . . . . . . Total Part Build Rating 16 | . . . . . . . . . . . . . . . . 16 . . . . . . Parts Repaired 1 | . . . . . . . . . . . . . . . 1 . . . . . . . Time 13 | . . . . . . . . . . . . . . . 13 . . . . . . . Parts Recycled . | . . . . . . . . . . . . . . . . . . . . . . . Recycled Matter . | . . . . . . . . . . . . . . . . . . . . . . . Retrieved Matter . | . . . . . . . . . . . . . . . . . . . . . . . Retrieved Components . | . . . . . . . . . . . . . . . . . . . . . . . Parts Scanalyzed . | . . . . . . . . . . . . . . . . . . . . . . . Part Schematics Acquired . | . . . . . . . . . . . . . . . . . . . . . . . Parts Damaged . | . . . . . . . . . . . . . . . . . . . . . . . Bothacking | -11 -10 -10 -10 -9 -8 -7 -7 -7 -6 -6 -5 -5 -4 -4 -3 -3 -3 -2 -2 -1 -1 -1 ------------ Run | Yrd Mat Min Exi Min Mat Fac Gar Fac Fac DSF Fac Gar Fac Gar Res Tes Gar Res DSF Acc Gar Acc Used RIF Installer 5 | . . . . . . . . . . . . 1 . 1 . . 1 . . . 2 . Command Fork 1 | . . . . . . . . . . . . . . . . . 1 . . . . . Signal Jammer 1 | . . . . . . . . . . . . . . . . . . . . . 1 . Patrol Navigation 1 | . . . . . . . . . . . . . . 1 . . . . . . . . Program Shield 1 | . . . . . . . . . . . . . . . . . . . . . 1 . Robots Hacked 44 | . . . . . . . . . . . . . . . . 2 8 . 1 4 19 10 Non-combat 1 | . . . . . . . . . . . . . . . . 1 . . . . . . Combat 43 | . . . . . . . . . . . . . . . . 1 8 . 1 4 19 10 Robot Hacks Applied 57 | . . . . . . . . . . . . . . . . 2 12 . 1 4 25 13 parse_system 2 | . . . . . . . . . . . . . . . . . . . . . 2 . ignore_repairs 1 | . . . . . . . . . . . . . . . . 1 . . . . . . find_shortcuts 1 | . . . . . . . . . . . . . . . . . 1 . . . . . show_paths 1 | . . . . . . . . . . . . . . . . . . . . . 1 . scatter_targeting 2 | . . . . . . . . . . . . . . . . . . . . . 1 1 spike_heat 4 | . . . . . . . . . . . . . . . . . 1 . . . 2 1 amplify_resonance 12 | . . . . . . . . . . . . . . . . . 3 . . . 5 4 wipe_record 2 | . . . . . . . . . . . . . . . . . . . . . . 2 disable_weapons 1 | . . . . . . . . . . . . . . . . . 1 . . . . . reboot_system 5 | . . . . . . . . . . . . . . . . . 1 . . 2 2 . overwrite_iff 9 | . . . . . . . . . . . . . . . . . 4 . . . 3 2 formatsys_high 17 | . . . . . . . . . . . . . . . . 1 1 . 1 2 9 3 Relay Couplers Released 68 | . . . . . . . 4 . . . . . . 11 . . 20 . . . 33 . Machine Destruction 68 | . . . . . . . 4 . . . . . . 11 . . 20 . . . 33 . Attached 38 | . . . . . . . . . . . . . 2 2 2 . 6 . 1 . 18 7 Fabnet Peak Effective % . | . . . . . . . . . . . . . . . . . . . . . . . Robots Rewired 10 | . . . 3 . . . 2 . . . . . . 3 . . 2 . . . . . Allies Hacked 1 | . . . . . . . . . . . . . . . . . . . . . 1 . Hacks Repelled . | . . . . . . . . . . . . . . . . . . . . . . . Allies | -11 -10 -10 -10 -9 -8 -7 -7 -7 -6 -6 -5 -5 -4 -4 -3 -3 -3 -2 -2 -1 -1 -1 -------- Run | Yrd Mat Min Exi Min Mat Fac Gar Fac Fac DSF Fac Gar Fac Gar Res Tes Gar Res DSF Acc Gar Acc Total Allies 46 | . . . 3 . . 3 2 . . . . . . 3 1 2 9 . 1 2 15 5 Largest Group 4 | . . . 2 2 1 3 2 . . . . . . 3 1 2 4 2 3 3 3 2 Highest-Rated Group 473 | . . . 29 29 21 90 62 . . . . . . 124 45 73 296 290 473 473 180 72 Highest-Rated Ally 183 | . . . 21 21 21 30 31 . . . . . . 51 45 47 148 148 183 183 64 69 Initial Warlord ECA Mod 1 | . . . . . . . . 1 . . . . . . . . . . . . . . Total Orders 8 | . . . . . . . . . . . . . . . . . 2 . 5 . 1 . STAY 3 | . . . . . . . . . . . . . . . . . . . 3 . . . ROAM 1 | . . . . . . . . . . . . . . . . . 1 . . . . . FOLLOW 3 | . . . . . . . . . . . . . . . . . 1 . 2 . . . EXPLORE 1 | . . . . . . . . . . . . . . . . . . . . . 1 . Ally Attacks 273 | . . . . 6 2 12 31 . . . . . . 12 . 8 55 . 14 72 46 15 Total Damage 8125 | . . . . 92 46 299 484 . . . . . . 176 . 204 2303 . 626 1945 1300 650 Kills 53 | . . . . 2 . 4 5 . . . . . . 1 . . 11 . 4 16 2 8 Allies Corrupted 2 | . . . . . . . . . . . . . . . . . . . . . 2 . Allies Melted . | . . . . . . . . . . . . . . . . . . . . . . . Intel | -11 -10 -10 -10 -9 -8 -7 -7 -7 -6 -6 -5 -5 -4 -4 -3 -3 -3 -2 -2 -1 -1 -1 ------- Run | Yrd Mat Min Exi Min Mat Fac Gar Fac Fac DSF Fac Gar Fac Gar Res Tes Gar Res DSF Acc Gar Acc Active Infowar (turns) 3394 | . . 64 543 215 202 476 612 . . 40 14 5 22 . 32 133 1036 . . . . . Optics 1480 | . . 64 543 215 2 17 612 . . 27 . . . . . . . . . . . . IFF 70 | . . . . . . . . . . 29 14 5 22 . . . . . . . . . Terrain 574 | . . . . . 201 345 28 . . . . . . . . . . . . . . . Traps 388 | . . . . . . 388 . . . . . . . . . . . . . . . . Spoofing 1 | . . . . . . . . . . . . . . . . . 1 . . . . . ECM 1200 | . . . . . . . . . . . . . . . 32 133 1035 . . . . . Robot Analysis Total 7 | . 1 . . . 2 1 . . 1 . . . . . 2 . . . . . . . Derelict Logs Recovered . | . . . . . . . . . . . . . . . . . . . . . . . Drone Launches 1 | . . . . . . . . . . . . . . . . . . . . . 1 . Drone Recoveries . | . . . . . . . . . . . . . . . . . . . . . . . Exploration | -11 -10 -10 -10 -9 -8 -7 -7 -7 -6 -6 -5 -5 -4 -4 -3 -3 -3 -2 -2 -1 -1 -1 ------------- Run | Yrd Mat Min Exi Min Mat Fac Gar Fac Fac DSF Fac Gar Fac Gar Res Tes Gar Res DSF Acc Gar Acc Turns Passed 10937 | . 347 102 543 215 223 494 711 203 84 78 14 91 83 1236 211 134 2706 42 324 294 2101 701 Spaces Moved 7584 | 1 285 107 489 206 208 361 298 258 170 71 38 159 160 873 538 236 1238 19 159 123 1088 499 Core 131 | . . . . . . . 6 . . . . . . 1 . . 18 . . . . 106 Treads 2504 | . . . . . . . 42 . . . . . . 432 . . 611 19 159 123 1088 30 Legs 764 | 1 111 . . . . . 223 50 . . . . . . . . 378 . . . . 1 Wheels 1809 | . 174 107 489 206 208 361 22 . . . . . . . . . . . . . . 242 Hover 435 | . . . . . . . . 208 170 22 . . . . . . 35 . . . . . Flight 1941 | . . . . . . . 5 . . 49 38 159 160 440 538 236 196 . . . . 120 Fastest Speed 18 | 120 80 80 80 80 80 83 105 48 48 33 30 30 36 20 18 21 25 150 150 150 145 32 Average Speed 104 | 120 96 80 80 80 86 99 150 63 48 49 30 36 36 92 20 21 167 150 151 159 149 100 Slowest Speed 1250 | 120 190 80 80 80 95 105 300 240 48 445 30 116 39 400 98 25 1250 150 152 237 152 320 Overloaded Moves 141 | . . . . . . . . . . . . . . . 7 22 . . . . . 112 Propulsion Burnouts . | . . . . . . . . . . . . . . . . . . . . . . . Robots Hopped 25 | . . . . . . . . . . . . . 7 2 7 6 . . . . . 3 Potential Cave-ins . | . . . . . . . . . . . . . . . . . . . . . . . Cave-ins Triggered . | . . . . . . . . . . . . . . . . . . . . . . . Exploration Rate (%) 34 | 2 33 27 93 50 17 13 30 9 5 75 1 30 4 69 14 27 90 1 92 4 92 16 Regions Visited 22 Branch Regions 4 Pre-discovered Areas 1 | . . . 1 . . . . . . . . . . . . . . . . . . . Known Exits Taken 8 | . . . . . . 1 . . 1 . 1 . 1 . 1 1 . 1 . 1 . . Unknown Exits Taken 7 | 1 1 1 1 1 1 . . 1 . . . . . . . . . . . . . . Scrap Searched . | . . . . . . . . . . . . . . . . . . . . . . . Spaces Dug 37 | . . . . 2 . 2 . . . . . . . . . . 29 . . . 4 . Terrain Destroyed 504 | . . . . 2 . 28 11 2 . . . . . 2 . . 285 . 4 20 98 52 Melee 4 | . . . . 2 . 2 . . . . . . . . . . . . . . . . Projectile 162 | . . . . . . . . 2 . . . . . 2 . . 24 . 4 20 73 37 AOE 338 | . . . . . . 26 11 . . . . . . . . . 261 . . . 25 15 Terrain Rammed . | . . . . . . . . . . . . . . . . . . . . . . . Walls Destroyed . | . . . . . . . . . . . . . . . . . . . . . . . Machines Disabled . | . . . . . . . . . . . . . . . . . . . . . . . Actions | -11 -10 -10 -10 -9 -8 -7 -7 -7 -6 -6 -5 -5 -4 -4 -3 -3 -3 -2 -2 -1 -1 -1 --------- Run | Yrd Mat Min Exi Min Mat Fac Gar Fac Fac DSF Fac Gar Fac Gar Res Tes Gar Res DSF Acc Gar Acc Total 9689 | . 323 123 596 239 240 443 480 297 172 106 41 187 172 1193 627 314 1682 32 234 188 1380 620 Wait 578 | . 5 1 23 10 5 20 39 10 . 10 . 3 5 64 32 54 182 12 27 9 50 17 Move 7522 | . 284 106 488 205 207 360 297 257 170 70 38 158 148 868 524 224 1237 18 158 123 1087 495 Hop 20 | . . . . . . . . . . . . . 5 2 6 6 . . . . . 1 Pick Up 106 | . 6 6 4 . 3 10 5 2 1 2 1 . 2 9 6 1 9 . 16 6 15 2 Fast Attach 190 | . 6 . . 2 2 4 18 4 . 8 . . 2 33 12 8 42 2 3 2 31 11 Attach 73 | . 1 1 . 1 3 3 5 1 1 2 1 2 3 14 3 1 5 . . 7 9 10 Detach 53 | . . . . 1 1 . 4 . . 1 1 1 2 10 5 4 3 . 2 2 13 3 Swap 176 | . 2 2 2 3 5 7 11 5 . 2 . 1 1 18 15 3 34 . 10 11 32 12 Drop 192 | . 3 6 6 4 5 4 11 15 . 6 . . . 26 17 10 30 . 10 7 23 9 Fire 457 | . 16 1 19 . . 5 26 3 . 5 . 4 4 66 7 2 102 . 8 19 112 58 Melee 91 | . . . 9 13 8 30 31 . . . . . . . . . . . . . . . Ram 1 | . . . . . . . . . . . . . . . . . . . . . . 1 Kick . | . . . . . . . . . . . . . . . . . . . . . . . Crush 5 | . . . . . . . . . . . . . . . . . . . . 2 3 . Escape Stasis 134 | . . . . . . . 10 . . . . 18 . 76 . . 30 . . . . . Rewire 89 | . . . 44 . . . 23 . . . . . . 7 . 1 8 . . . 5 1 Trap 2 | . . . 1 . 1 . . . . . . . . . . . . . . . . . Miscellaneous . | . . . . . . . . . . . . . . . . . . . . . . . Route ------- -11/Scrapyard -10/Materials -10/Mines -10/Exiles (discovered 2 exits: *Min x2) -9/Mines -8/Materials -7/Factory -7/Garrison -7/Factory -6/Factory (discovered 2 exits: *Fac / DSF) -6/DSF -5/Factory -5/Garrison -4/Factory -4/Garrison (discovered 3 exits: *Res x3) -3/Research (discovered 6 exits: Res x3 / Arm / *Tes x2) -3/Testing -3/Garrison (discovered 3 exits: *Res x3) -2/Research -2/DSF -1/Access -1/Garrison (discovered 3 exits: [*Acc x3]) -1/Access History --------- Turn | Location | Event 1 | -11/Scrapyard | Discovered new exit (range 0) 1 | -11/Scrapyard | Entered Materials 73 | -10/Materials | Discovered new exit (range 7) 305 | -10/Materials | Build established: Mutant 348 | -10/Materials | Entered Mines 415 | -10/Mines | Found a hidden stash of uninstalled traps 446 | -10/Mines | Deemed a non-threat by the Exiles lab entrance 446 | -10/Mines | Discovered new exit (range 5) 450 | -10/Mines | Entered Exiles 450 | -10/Exiles | Found Exiles lab destroyed 463 | -10/Exiles | Discovered new exit (range 17) 641 | -10/Exiles | Learned location of Zion (-7) 711 | -10/Exiles | Opened EX-Vault 714 | -10/Exiles | Found Firepult 961 | -10/Exiles | Discovered new exit (range 15) 993 | -10/Exiles | Entered Mines 993 | -9/Mines | Accompanied by 2 allies 1000 | -9/Mines | Met a Derelict bent on vengeance 1045 | -9/Mines | A weapon hastily lodged in a ceiling crevice suddenly fell to the ground 1203 | -9/Mines | Discovered new exit (range 4) 1208 | -9/Mines | Entered Materials 1208 | -8/Materials | Accompanied by 1 ally 1208 | -8/Materials | Evolved 4 slots: Propulsion x2, Utility x2 1330 | -8/Materials | Central database locked down 1426 | -8/Materials | Discovered new exit (range 4) 1431 | -8/Materials | Entered Factory 1431 | -7/Factory | Evolved 2 slots: Utility x2 1596 | -7/Factory | Fabricated L-41 Fighter? 1888 | -7/Factory | Identified exit to Garrison 1925 | -7/Factory | Entered Garrison 1939 | -7/Garrison | Triggered checkpoint 1984 | -7/Garrison | Core integrity fell below 50% 1999 | -7/Garrison | Lost 6 parts (1p2n2u1w) 2043 | -7/Garrison | Garrison Relay disabled 2169 | -7/Garrison | Triggered checkpoint 2176 | -7/Garrison | Triggered checkpoint 2205 | -7/Garrison | Destroyed 7 combat bots 2219 | -7/Garrison | Core integrity fell below 20% 2299 | -7/Garrison | Lost 8 parts (1p3n2u2w) 2447 | -7/Garrison | Triggered checkpoint 2523 | -7/Garrison | Triggered checkpoint 2528 | -7/Garrison | Build established: Scavenger-Mutant 2619 | -7/Garrison | Discovered new exit (range 12) 2636 | -7/Garrison | Entered Factory 2798 | -7/Factory | Discovered new exit (range 14) 2839 | -7/Factory | Entered another Factory area 2839 | -6/Factory | Evolved 2 slots: Propulsion x1, Utility x1 2906 | -6/Factory | Discovered new exit (range 3) 2907 | -6/Factory | Identified exit to Factory 2923 | -6/Factory | Identified exit to DSF 2923 | -6/Factory | Entered DSF 2946 | -6/DSF | Additional patrols routed to DSF 2996 | -6/DSF | Discovered exit to Factory (range 14) 3001 | -6/DSF | Entered Factory 3001 | -5/Factory | Evolved 2 slots: Propulsion x1, Utility x1 3015 | -5/Factory | Identified exit to Garrison 3015 | -5/Factory | Entered Garrison 3036 | -5/Garrison | Triggered checkpoint 3063 | -5/Garrison | Triggered checkpoint 3100 | -5/Garrison | Installed Relay Interface Framework 3102 | -5/Garrison | Discovered new exit (range 12) 3106 | -5/Garrison | Identified exit to Factory 3106 | -5/Garrison | Entered Factory 3106 | -4/Factory | Evolved 2 slots: Utility x2 3109 | -4/Factory | Identified exit to DSF 3139 | -4/Factory | Garrison activated, responded to threat 3189 | -4/Factory | Identified exit to Garrison 3189 | -4/Factory | Entered Garrison 3189 | -4/Garrison | Warlord forces raided the area 3209 | -4/Garrison | Spotted B-86 Titan 3225 | -4/Garrison | Destroyed B-86 Titan 3246 | -4/Garrison | Destroyed 7 combat bots 3251 | -4/Garrison | Lost 5 parts (4n1u) 3251 | -4/Garrison | Triggered checkpoint 3255 | -4/Garrison | Triggered checkpoint 3272 | -4/Garrison | Lost 7 allies 3313 | -4/Garrison | Triggered checkpoint 3346 | -4/Garrison | Garrison Relay disabled 3361 | -4/Garrison | Triggered checkpoint 3365 | -4/Garrison | Lost 8 allies 3462 | -4/Garrison | Lost 3 parts (1n2u) 3499 | -4/Garrison | Warlord forces retreated 3704 | -4/Garrison | Lost 3 allies 3810 | -4/Garrison | Discovered new exit (range 16) 3828 | -4/Garrison | Discovered new exit (range 88) 3828 | -4/Garrison | Discovered new exit (range 67) 3828 | -4/Garrison | Discovered new exit (range 11) 3828 | -4/Garrison | Learned Research security intel 3965 | -4/Garrison | Garrison Relay disabled 4024 | -4/Garrison | Lost 5 parts (1p2n1u1w) 4089 | -4/Garrison | Garrison Relay disabled 4392 | -4/Garrison | Expanded RIF knowledge: Patrol Navigation 4422 | -4/Garrison | Spotted Executioner 4423 | -4/Garrison | Spotted Executioner 4425 | -4/Garrison | Entered Research 4425 | -3/Research | Evolved 2 slots: Power x1, Utility x1 4481 | -3/Research | Repaired Propulsion Shielding 4544 | -3/Research | Build established: Scavenger-Sprinter 4578 | -3/Research | Identified exit to Research 4620 | -3/Research | Identified exit to Armory 4620 | -3/Research | Identified exit to Testing 4636 | -3/Research | Entered Testing 4638 | -3/Testing | Protovariant out of control (PP-88P64OG3S0) 4638 | -3/Testing | Unleashed a protovariant (PP-88P64OG3S0) 4704 | -3/Testing | Fabricated Adv. Remote Datajack (x2) 4720 | -3/Testing | Spotted PP-88P64OG3S0 4720 | -3/Testing | Spotted Investigator 4764 | -3/Testing | Found Prototype Device 4764 | -3/Testing | Identified Exp. EM Disruption Field 4770 | -3/Testing | Identified exit to Garrison 4770 | -3/Testing | Entered Garrison 4774 | -3/Garrison | Expanded RIF knowledge: Command Fork 4826 | -3/Garrison | Triggered checkpoint 4833 | -3/Garrison | Found embedded Infiltrators 4860 | -3/Garrison | Lost 5 parts (1p3n1u) 4922 | -3/Garrison | Lost 4 parts (4n) 4927 | -3/Garrison | P-80 Master assimilated allied P8-9YK(x) 4966 | -3/Garrison | Lost 3 parts (1p1n1w) 5133 | -3/Garrison | Build established: Wizard-Mutant 5194 | -3/Garrison | Spotted B-86 Titan 5218 | -3/Garrison | Allies destroyed B-86 Titan 5226 | -3/Garrison | Triggered checkpoint 5228 | -3/Garrison | Triggered checkpoint 5278 | -3/Garrison | Lost 4 parts (2p1n1u) 5324 | -3/Garrison | Triggered checkpoint 5363 | -3/Garrison | Lost 3 parts (1u2w) 5658 | -3/Garrison | Triggered checkpoint 5698 | -3/Garrison | Garrison Relay disabled 5738 | -3/Garrison | Learned Research security intel 5738 | -3/Garrison | Discovered exit to Research (range 73) 5738 | -3/Garrison | Discovered exit to Research (range 76) 5738 | -3/Garrison | Discovered exit to Research (range 10) 5846 | -3/Garrison | Triggered checkpoint 5991 | -3/Garrison | Spotted B-86 Titan 6018 | -3/Garrison | Triggered checkpoint 6049 | -3/Garrison | Destroyed 9 combat bots 6144 | -3/Garrison | Garrison Relay disabled 6271 | -3/Garrison | Spotted B-75 Beast 6330 | -3/Garrison | Lost 4 parts (2n2u) 6332 | -3/Garrison | Destroyed B-75 Beast 6380 | -3/Garrison | Build established: Scavenger-Mutant 6461 | -3/Garrison | Rewired B-90 Cyclops 6480 | -3/Garrison | Rewired B-90 Cyclops 6544 | -3/Garrison | Triggered checkpoint 6667 | -3/Garrison | Garrison Relay disabled 6854 | -3/Garrison | Triggered checkpoint 6980 | -3/Garrison | Destroyed B-86 Titan 7194 | -3/Garrison | Garrison Relay disabled 7292 | -3/Garrison | Build established: Bothacker-Mutant 7476 | -3/Garrison | Entered Research 7476 | -2/Research | Accompanied by 2 allies 7476 | -2/Research | Evolved 2 slots: Weapon x2 7506 | -2/Research | Identified exit to DSF 7518 | -2/Research | Entered DSF 7518 | -2/DSF | Accompanied by 2 allies 7535 | -2/DSF | Additional patrols routed to DSF 7563 | -2/DSF | Found Prototype Launcher 7563 | -2/DSF | Identified Enh. Gamma Bomb Array 7569 | -2/DSF | Found Enh. Gamma Bomb Array 7590 | -2/DSF | Found Enh. Gamma Bomb Array 7753 | -2/DSF | Discovered new exit (range 16) 7808 | -2/DSF | Sterilization system engaged 7816 | -2/DSF | Build established: Bothacker-Tank 7828 | -2/DSF | Ambient heat levels rising (+10) 7842 | -2/DSF | Entered Access 7842 | -1/Access | Accompanied by 3 allies 7842 | -1/Access | Evolved 2 slots: Utility x1, Weapon x1 8127 | -1/Access | Identified exit to Garrison 8127 | -1/Access | Adv. Hacking Suite fried by hacking feedback 8136 | -1/Access | Entered Garrison 8136 | -1/Garrison | Accompanied by 1 ally 8204 | -1/Garrison | Triggered checkpoint 8270 | -1/Garrison | Lost 3 allies 8288 | -1/Garrison | Build established: Scavenger-Tank 8307 | -1/Garrison | Garrison Relay disabled 8527 | -1/Garrison | Expanded RIF knowledge: Program Shield 8566 | -1/Garrison | Triggered checkpoint 8595 | -1/Garrison | Spotted B-99 Colossus 8603 | -1/Garrison | Triggered checkpoint 8623 | -1/Garrison | Destroyed B-99 Colossus 8650 | -1/Garrison | Lost 5 parts (1p3u1w) 8665 | -1/Garrison | Triggered checkpoint 8709 | -1/Garrison | Destroyed 7 combat bots 8772 | -1/Garrison | Triggered checkpoint 8820 | -1/Garrison | Garrison Relay disabled 8969 | -1/Garrison | Discovered new exit (range 14) 9073 | -1/Garrison | Expanded RIF knowledge: Signal Jamming 9123 | -1/Garrison | Build established: Bothacker-Tank 9187 | -1/Garrison | Lost 4 allies 9294 | -1/Garrison | System corruption reached 10% 9295 | -1/Garrison | Garrison Relay disabled 9382 | -1/Garrison | Garrison Relay disabled 9382 | -1/Garrison | Garrison Relay disabled 9436 | -1/Garrison | Garrison Relay disabled 9484 | -1/Garrison | Discovered new exit (range 11) 9494 | -1/Garrison | Triggered checkpoint 9520 | -1/Garrison | Garrison Relay disabled 9583 | -1/Garrison | Lost 4 parts (1p3u) 9700 | -1/Garrison | Build established: Botlord-Tank 9824 | -1/Garrison | Discovered new exit (range 15) 10022 | -1/Garrison | Triggered checkpoint 10038 | -1/Garrison | Garrison Relay disabled 10237 | -1/Garrison | Entered Access 10459 | -1/Access | Found Ragnarok Missile Launcher 10553 | -1/Access | Energy Cycler disabled 10639 | -1/Access | Found Prototype Processor 10639 | -1/Access | Identified Exp. Target Analyzer 10660 | -1/Access | Garrison activated, responded to threat 10663 | -1/Access | High security lockdown imminent 10692 | -1/Access | Build established: Botlord-Gunner 10736 | -1/Access | Lost 5 parts (1p2n1u1w) 10743 | -1/Access | High security lockdown engaged 10862 | -1/Access | Lost 12 parts (2n5u5w) 10869 | -1/Access | Core integrity fell below 50% 10887 | -1/Access | System corruption reached 30% 10922 | -1/Access | Lost 7 parts (3n3u1w) 10924 | -1/Access | Core integrity fell below 20% 10938 | -1/Access | Destroyed by H-81 Overseer with Heavy Linear Accelerator Last Messages --------------- 10894_ C-30 ARC bursts open, deploying its payload. 10894_ G-73 Enforcer unfolds itself. 10894_ B-74 Champion unfolds itself. 10894_ G-73 Enforcer unfolds itself. 10894_ L-61 Swordsman unfolds itself. 10894_ I-47 Archangel unfolds itself. 10894_ K-01 Serf collects debris. 10895_ Triggered Shock Trap. 10895_ The floor emits a surge of raw power. 10895_ System corrupted (+2). 10900_ System corrupted: Cld. Nuclear Pulse Thruster fused. 10917_ System corrupted: Matter fused (-7). 10924_ Slammed into P-80 Master. 10924_ Destabilizing: Core damaged (-64). 10927_ P-80 Master resets P-80 Master, system corruption cleaned. 10929_ Cld. Nuclear Pulse Thruster destroyed. 10931_ Knocked back. 10934_ Acquired Hvy. Shield Leg. 10935_ Relay Coupler [Grunt] destroyed. 10936_ Z%3NSST |881,, BP6#CKURV9D%|STI